[Event "*** Titled Tuesday Blitz"]
[Site "Chess.com"]
[Date "2020.04.28"]
[Round "6"]
[White "Sjakkerntobi"]
[Black "ParvizGasimov"]
[Result "0-1"]
[WhiteElo "2181"]
[BlackElo "2325"]
[TimeControl "180+1"]
[EndTime "11:06:19 PDT"]
[Termination "ParvizGasimov won by checkmate"]

1. e4 {[%clk 0:03:00.9]} 1... e6 {[%clk 0:02:59.5]} 2. d4 {[%clk 0:03:00.7]}
2... d5 {[%clk 0:02:59.8]} 3. Nd2 {[%clk 0:03:00.7]} 3... c5 {[%clk 0:02:59.4]}
4. Ngf3 {[%clk 0:03:00.4]} 4... cxd4 {[%clk 0:02:58.1]} 5. Nxd4 {[%clk
0:03:00.2]} 5... Nf6 {[%clk 0:02:58.3]} 6. e5 {[%clk 0:02:59.6]} 6... Nfd7
{[%clk 0:02:57.9]} 7. f4 {[%clk 0:02:59.5]} 7... Nc6 {[%clk 0:02:58]} 8. N2f3
{[%clk 0:02:59.2]} 8... g6 {[%clk 0:02:45.4]} 9. c3 {[%clk 0:02:57.7]} 9... Bg7
{[%clk 0:02:45.5]} 10. Bd3 {[%clk 0:02:58.4]} 10... O-O {[%clk 0:02:45.5]} 11.
h4 {[%clk 0:02:54.9]} 11... Nc5 {[%clk 0:02:45.4]} 12. Bc2 {[%clk 0:02:54.4]}
12... f6 {[%clk 0:02:44.6]} 13. Qe2 {[%clk 0:02:48.6]} 13... fxe5 {[%clk
0:02:41.2]} 14. fxe5 {[%clk 0:02:49.5]} 14... Nxd4 {[%clk 0:02:36.9]} 15. Nxd4
{[%clk 0:02:39.8]} 15... Qc7 {[%clk 0:02:31.8]} 16. h5 {[%clk 0:02:34.9]} 16...
Qxe5 {[%clk 0:02:25.8]} 17. hxg6 {[%clk 0:02:28.7]} 17... Qg3+ {[%clk
0:02:11.8]} 18. Kd1 {[%clk 0:02:24.1]} 18... e5 {[%clk 0:02:11.8]} 19. gxh7+
{[%clk 0:02:11]} 19... Kh8 {[%clk 0:02:10.2]} 20. Nf3 {[%clk 0:02:11.9]} 20...
e4 {[%clk 0:02:05.7]} 21. Bh6 {[%clk 0:01:28.5]} 21... Bxh6 {[%clk 0:01:39.9]}
22. Rxh6 {[%clk 0:01:27.1]} 22... exf3 {[%clk 0:01:39.1]} 23. Qe7 {[%clk
0:01:12.1]} 23... Bg4 {[%clk 0:01:27.6]} 24. Rf6 {[%clk 0:00:53.1]} 24... fxg2+
{[%clk 0:00:51.8]} 25. Kd2 {[%clk 0:00:52]} 25... Ne6 {[%clk 0:00:46.8]} 26. Rg6
{[%clk 0:00:19.6]} 26... Qf4+ {[%clk 0:00:41.5]} 27. Kd3 {[%clk 0:00:15.1]}
27... Qf3+ {[%clk 0:00:35.5]} 28. Kd2 {[%clk 0:00:14.7]} 28... Qf2+ {[%clk
0:00:35.4]} 29. Kd3 {[%clk 0:00:14.8]} 29... Rf3# {[%clk 0:00:33.2]} 0-1

[Event "*** Titled Tuesday Blitz"]
[Site "Chess.com"]
[Date "2020.04.28"]
[Round "6"]
[White "albano87"]
[Black "DonBroca"]
[Result "1-0"]
[WhiteElo "2383"]
[BlackElo "2054"]
[TimeControl "180+1"]
[EndTime "11:06:20 PDT"]
[Termination "albano87 won by resignation"]

1. e4 {[%clk 0:03:00.8]} 1... c5 {[%clk 0:02:59.4]} 2. Nf3 {[%clk 0:03:00.9]}
2... d6 {[%clk 0:02:59.8]} 3. d4 {[%clk 0:03:01.7]} 3... cxd4 {[%clk 0:03:00.7]}
4. Qxd4 {[%clk 0:03:02.5]} 4... Bd7 {[%clk 0:02:59.4]} 5. c4 {[%clk 0:03:01.7]}
5... Nc6 {[%clk 0:02:59.4]} 6. Qd2 {[%clk 0:03:02.4]} 6... g6 {[%clk 0:02:59.2]}
7. b3 {[%clk 0:03:02.3]} 7... Bg7 {[%clk 0:02:58.3]} 8. Bb2 {[%clk 0:03:02.8]}
8... Nf6 {[%clk 0:02:59.2]} 9. Nc3 {[%clk 0:03:03]} 9... O-O {[%clk 0:02:59.6]}
10. Be2 {[%clk 0:03:03.6]} 10... a5 {[%clk 0:02:53.2]} 11. O-O {[%clk 0:03:03]}
11... Bg4 {[%clk 0:02:45.7]} 12. h3 {[%clk 0:03:02.4]} 12... Bxf3 {[%clk
0:02:44]} 13. Bxf3 {[%clk 0:03:03.3]} 13... Nd7 {[%clk 0:02:44.2]} 14. Nd5
{[%clk 0:03:01.4]} 14... Nde5 {[%clk 0:02:33.6]} 15. Be2 {[%clk 0:03:01.4]}
15... e6 {[%clk 0:02:31.2]} 16. Ne3 {[%clk 0:03:01.2]} 16... Qc7 {[%clk
0:02:07.7]} 17. f4 {[%clk 0:02:59.6]} 17... Nd7 {[%clk 0:02:04.8]} 18. Bxg7
{[%clk 0:02:58.6]} 18... Kxg7 {[%clk 0:02:05.7]} 19. Rfd1 {[%clk 0:02:54.9]}
19... Nc5 {[%clk 0:02:05.1]} 20. Bf3 {[%clk 0:02:55.8]} 20... Rad8 {[%clk
0:02:01.9]} 21. Qc3+ {[%clk 0:02:55.8]} 21... Kg8 {[%clk 0:02:01]} 22. Ng4
{[%clk 0:02:55.8]} 22... e5 {[%clk 0:01:53.9]} 23. Nf6+ {[%clk 0:02:50.5]} 23...
Kg7 {[%clk 0:01:52.5]} 24. Nd5 {[%clk 0:02:50.4]} 24... Qb8 {[%clk 0:01:45.4]}
25. f5 {[%clk 0:02:50.5]} 25... f6 {[%clk 0:01:44]} 26. g4 {[%clk 0:02:50.4]}
26... Rf7 {[%clk 0:01:34.4]} 27. Kg2 {[%clk 0:02:50]} 27... Ne7 {[%clk
0:01:33.8]} 28. Nxe7 {[%clk 0:02:46.4]} 28... Rxe7 {[%clk 0:01:32.6]} 29. Rd5
{[%clk 0:02:47.3]} 29... b6 {[%clk 0:01:30.1]} 30. Rad1 {[%clk 0:02:46.5]} 30...
Qc7 {[%clk 0:01:23.7]} 31. a3 {[%clk 0:02:44.3]} 31... Red7 {[%clk 0:01:13.5]}
32. h4 {[%clk 0:02:43.7]} 32... Rc8 {[%clk 0:01:07]} 33. g5 {[%clk 0:02:43.4]}
33... Rf8 {[%clk 0:00:59.1]} 34. Bg4 {[%clk 0:02:38.8]} 34... gxf5 {[%clk
0:00:54.3]} 35. Bxf5 {[%clk 0:02:38.6]} 35... Rdd8 {[%clk 0:00:55.2]} 36. Kh2
{[%clk 0:02:32.9]} 36... Qe7 {[%clk 0:00:52.7]} 37. Rg1 {[%clk 0:02:31.9]} 37...
Kh8 {[%clk 0:00:52.5]} 38. b4 {[%clk 0:02:30.2]} 38... axb4 {[%clk 0:00:51.1]}
39. axb4 {[%clk 0:02:31.1]} 39... Ne6 {[%clk 0:00:51.3]} 40. Bxe6 {[%clk
0:02:25.1]} 40... Qxe6 {[%clk 0:00:50.7]} 41. Qg3 {[%clk 0:02:26]} 41... Rg8
{[%clk 0:00:47.6]} 42. c5 {[%clk 0:02:18.8]} 42... bxc5 {[%clk 0:00:46.4]} 43.
bxc5 {[%clk 0:02:18.2]} 43... fxg5 {[%clk 0:00:47.3]} 44. Rxd6 {[%clk
0:02:15.1]} 44... Rxd6 {[%clk 0:00:45.7]} 45. cxd6 {[%clk 0:02:16]} 45... Qxd6
{[%clk 0:00:46.1]} 46. hxg5 {[%clk 0:02:16.5]} 46... Qd2+ {[%clk 0:00:45.4]} 47.
Rg2 {[%clk 0:02:16.4]} 47... Qf4 {[%clk 0:00:45.3]} 48. Qxf4 {[%clk 0:02:07.8]}
48... exf4 {[%clk 0:00:45.7]} 49. Rg4 {[%clk 0:02:08.7]} 49... Rf8 {[%clk
0:00:43.7]} 50. Kg2 {[%clk 0:02:07.7]} 50... Kg7 {[%clk 0:00:44]} 51. Kf3 {[%clk
0:02:08.2]} 51... Kg6 {[%clk 0:00:44.2]} 52. Rxf4 {[%clk 0:02:08.6]} 52... Rc8
{[%clk 0:00:36.8]} 53. Kg4 {[%clk 0:02:08.8]} 53... Rc1 {[%clk 0:00:35.9]} 54.
Rf6+ {[%clk 0:02:08.6]} 54... Kg7 {[%clk 0:00:35.4]} 55. Rb6 {[%clk 0:02:08.5]}
55... Rc4 {[%clk 0:00:32.9]} 56. Kf5 {[%clk 0:02:07.5]} 56... Rc5+ {[%clk
0:00:33.1]} 57. e5 {[%clk 0:02:08]} 57... Ra5 {[%clk 0:00:26.6]} 58. Rb7+ {[%clk
0:02:07.9]} 58... Kf8 {[%clk 0:00:20.5]} 59. Kf6 {[%clk 0:02:08.8]} 59... Ra6+
{[%clk 0:00:20.4]} 60. e6 {[%clk 0:02:08.8]} 60... Ra8 {[%clk 0:00:20.4]} 61.
Rg7 {[%clk 0:02:04.7]} 61... Rb8 {[%clk 0:00:16.3]} 62. e7+ {[%clk 0:02:03.2]}
62... Ke8 {[%clk 0:00:16.1]} 63. Rg8+ {[%clk 0:02:04.1]} 1-0

[Event "*** Titled Tuesday Blitz"]
[Site "Chess.com"]
[Date "2020.04.28"]
[Round "6"]
[White "The_Machine04"]
[Black "IlzeBerzina"]
[Result "1-0"]
[WhiteElo "2288"]
[BlackElo "2147"]
[TimeControl "180+1"]
[EndTime "11:06:20 PDT"]
[Termination "The_Machine04 won by resignation"]

1. d4 {[%clk 0:03:00.9]} 1... d5 {[%clk 0:02:59]} 2. Bf4 {[%clk 0:02:59.9]} 2...
Nf6 {[%clk 0:02:57.4]} 3. e3 {[%clk 0:03:00.1]} 3... c5 {[%clk 0:02:56.9]} 4. c3
{[%clk 0:02:59.7]} 4... Nc6 {[%clk 0:02:56.5]} 5. Nd2 {[%clk 0:02:58.9]} 5...
Qb6 {[%clk 0:02:53.8]} 6. Qb3 {[%clk 0:02:58.7]} 6... c4 {[%clk 0:02:53.6]} 7.
Qc2 {[%clk 0:02:58.6]} 7... g6 {[%clk 0:02:41.7]} 8. f3 {[%clk 0:02:57.9]} 8...
Nh5 {[%clk 0:02:35.2]} 9. Bg3 {[%clk 0:02:54.7]} 9... Nxg3 {[%clk 0:02:33.8]}
10. hxg3 {[%clk 0:02:55.6]} 10... Qc7 {[%clk 0:02:28]} 11. Ne2 {[%clk
0:02:52.4]} 11... Bg7 {[%clk 0:02:25.2]} 12. Nf4 {[%clk 0:02:49.6]} 12... Qd6
{[%clk 0:02:05.5]} 13. e4 {[%clk 0:02:46.7]} 13... e6 {[%clk 0:01:50]} 14. e5
{[%clk 0:02:24.6]} 14... Qe7 {[%clk 0:01:49.1]} 15. b4 {[%clk 0:02:24.2]} 15...
cxb3 {[%clk 0:01:47.8]} 16. axb3 {[%clk 0:02:23.9]} 16... O-O {[%clk 0:01:41.8]}
17. Bd3 {[%clk 0:02:21.5]} 17... f6 {[%clk 0:01:38.7]} 18. Bxg6 {[%clk
0:02:01.7]} 18... hxg6 {[%clk 0:01:37.1]} 19. Nxg6 {[%clk 0:02:02.6]} 19... Qf7
{[%clk 0:01:33.7]} 20. Nxf8 {[%clk 0:02:03.5]} 20... Kxf8 {[%clk 0:01:32.5]} 21.
exf6 {[%clk 0:02:01.7]} 21... Qxf6 {[%clk 0:01:26.3]} 22. Kf2 {[%clk 0:01:53.4]}
22... Bd7 {[%clk 0:01:17.9]} 23. f4 {[%clk 0:01:49.1]} 23... Kf7 {[%clk
0:01:15.1]} 24. Nf3 {[%clk 0:01:48.1]} 24... Rh8 {[%clk 0:01:06.4]} 25. Rxh8
{[%clk 0:01:46]} 25... Bxh8 {[%clk 0:01:05.6]} 26. Rh1 {[%clk 0:01:46.9]} 26...
Bg7 {[%clk 0:01:00.9]} 27. Rh7 {[%clk 0:01:43.7]} 27... Qg6 {[%clk 0:00:56.5]}
28. Ng5+ {[%clk 0:01:20.3]} 28... Kf6 {[%clk 0:00:55.9]} 29. Qe2 {[%clk
0:01:14.7]} 29... Qf5 {[%clk 0:00:31.9]} 30. Qh5 {[%clk 0:00:59.6]} 30... Qc2+
{[%clk 0:00:27.2]} 31. Kg1 {[%clk 0:00:59]} 31... Qb1+ {[%clk 0:00:26.6]} 32.
Kh2 {[%clk 0:00:58.5]} 32... Qg6 {[%clk 0:00:26]} 33. Qh4 {[%clk 0:00:53.7]}
33... Ne7 {[%clk 0:00:19.9]} 34. Nf3+ {[%clk 0:00:42.2]} 34... Kf7 {[%clk
0:00:19]} 35. Ne5+ {[%clk 0:00:41.7]} 1-0

[Event "*** Titled Tuesday Blitz"]
[Site "Chess.com"]
[Date "2020.04.28"]
[Round "6"]
[White "Riazantsev"]
[Black "petrkostenko"]
[Result "0-1"]
[WhiteElo "2648"]
[BlackElo "2332"]
[TimeControl "180+1"]
[EndTime "11:06:21 PDT"]
[Termination "petrkostenko won by resignation"]

1. d4 {[%clk 0:03:00.9]} 1... e6 {[%clk 0:02:59.3]} 2. Nf3 {[%clk 0:03:00.9]}
2... f5 {[%clk 0:02:58]} 3. g3 {[%clk 0:02:59.1]} 3... Nf6 {[%clk 0:02:58.4]} 4.
Bg2 {[%clk 0:02:59.3]} 4... d5 {[%clk 0:02:59.1]} 5. O-O {[%clk 0:02:59.4]} 5...
Bd6 {[%clk 0:02:59.7]} 6. b3 {[%clk 0:02:58.8]} 6... O-O {[%clk 0:02:59.7]} 7.
Ba3 {[%clk 0:02:58.7]} 7... b6 {[%clk 0:02:59.5]} 8. c4 {[%clk 0:02:56.4]} 8...
Bb7 {[%clk 0:02:59.2]} 9. e3 {[%clk 0:02:55.3]} 9... Ne4 {[%clk 0:02:50.8]} 10.
Bxd6 {[%clk 0:02:54]} 10... Qxd6 {[%clk 0:02:50.1]} 11. Nbd2 {[%clk 0:02:49.7]}
11... Nd7 {[%clk 0:02:49.2]} 12. Rc1 {[%clk 0:02:49]} 12... Rfd8 {[%clk
0:02:35.5]} 13. Qc2 {[%clk 0:02:48.9]} 13... c5 {[%clk 0:02:30.5]} 14. cxd5
{[%clk 0:02:47.9]} 14... exd5 {[%clk 0:02:29.7]} 15. Qb2 {[%clk 0:02:48.1]}
15... Qe6 {[%clk 0:02:25.6]} 16. Rfe1 {[%clk 0:02:44.7]} 16... Rac8 {[%clk
0:02:25]} 17. h4 {[%clk 0:02:43]} 17... a5 {[%clk 0:02:02.8]} 18. a4 {[%clk
0:02:35.1]} 18... Ba6 {[%clk 0:01:53.8]} 19. Nxe4 {[%clk 0:02:33.7]} 19... fxe4
{[%clk 0:01:31.5]} 20. Ng5 {[%clk 0:02:33.4]} 20... Qe7 {[%clk 0:01:32.1]} 21.
Bh3 {[%clk 0:02:31.2]} 21... Rc6 {[%clk 0:01:32.2]} 22. Bxd7 {[%clk 0:01:53.1]}
22... Qxd7 {[%clk 0:01:28]} 23. Kg2 {[%clk 0:01:46.2]} 23... Bc8 {[%clk
0:01:12.8]} 24. Rh1 {[%clk 0:01:46]} 24... Qe7 {[%clk 0:01:12.9]} 25. Qe2 {[%clk
0:01:38.4]} 25... Rf8 {[%clk 0:01:03.8]} 26. Nh3 {[%clk 0:01:27.2]} 26... Bxh3+
{[%clk 0:01:01.5]} 27. Rxh3 {[%clk 0:01:26]} 27... Rcf6 {[%clk 0:01:01.7]} 28.
Rf1 {[%clk 0:01:25.2]} 28... cxd4 {[%clk 0:01:00.5]} 29. exd4 {[%clk 0:01:25.3]}
29... Qb4 {[%clk 0:01:01.1]} 30. Qd1 {[%clk 0:01:07.4]} 30... Rf3 {[%clk
0:00:58.7]} 31. Rhh1 {[%clk 0:01:05]} 31... Rd3 {[%clk 0:00:49.8]} 32. Qh5
{[%clk 0:01:03.6]} 32... Qxd4 {[%clk 0:00:50.1]} 33. Rh2 {[%clk 0:00:53.3]}
33... Rd2 {[%clk 0:00:49.4]} 34. Kg1 {[%clk 0:00:53.4]} 34... e3 {[%clk
0:00:46.2]} 35. Rg2 {[%clk 0:00:41.9]} 35... g6 {[%clk 0:00:35.5]} 36. Qg5
{[%clk 0:00:28.6]} 36... e2 {[%clk 0:00:35.4]} 37. Re1 {[%clk 0:00:28.3]} 37...
Rd1 {[%clk 0:00:35.5]} 0-1

[Event "*** Titled Tuesday Blitz"]
[Site "Chess.com"]
[Date "2020.04.28"]
[Round "6"]
[White "hongnhung1234"]
[Black "binbin239"]
[Result "0-1"]
[WhiteElo "2203"]
[BlackElo "2437"]
[TimeControl "180+1"]
[EndTime "11:06:22 PDT"]
[Termination "binbin239 won by checkmate"]

1. e4 {[%clk 0:03:00.9]} 1... c5 {[%clk 0:02:58.2]} 2. Nc3 {[%clk 0:03:00.7]}
2... Nc6 {[%clk 0:02:58.7]} 3. f4 {[%clk 0:03:00.6]} 3... g6 {[%clk 0:02:58.7]}
4. Nf3 {[%clk 0:03:00.7]} 4... Bg7 {[%clk 0:02:59.2]} 5. Bc4 {[%clk 0:03:00.7]}
5... e6 {[%clk 0:02:59.8]} 6. O-O {[%clk 0:03:00.5]} 6... Nge7 {[%clk
0:03:00.2]} 7. d3 {[%clk 0:03:00.3]} 7... O-O {[%clk 0:02:59.4]} 8. Qe1 {[%clk
0:03:00]} 8... d5 {[%clk 0:02:59.1]} 9. Bb3 {[%clk 0:02:59.9]} 9... Nd4 {[%clk
0:02:56.9]} 10. Nxd4 {[%clk 0:02:58.2]} 10... cxd4 {[%clk 0:02:57]} 11. Ne2
{[%clk 0:02:58.5]} 11... dxe4 {[%clk 0:02:57.1]} 12. dxe4 {[%clk 0:02:59.4]}
12... d3 {[%clk 0:02:57.4]} 13. Nc3 {[%clk 0:02:50.3]} 13... b6 {[%clk 0:02:48]}
14. Qg3 {[%clk 0:02:45.2]} 14... dxc2 {[%clk 0:02:46.1]} 15. Bxc2 {[%clk
0:02:44.9]} 15... Ba6 {[%clk 0:02:46.3]} 16. Rd1 {[%clk 0:02:42.8]} 16... Qc7
{[%clk 0:02:43.4]} 17. Bd2 {[%clk 0:02:25.4]} 17... Rad8 {[%clk 0:02:41.8]} 18.
Rac1 {[%clk 0:02:21.1]} 18... Qb8 {[%clk 0:02:26.6]} 19. Be1 {[%clk 0:02:15.3]}
19... Nc6 {[%clk 0:02:09.2]} 20. Bf2 {[%clk 0:01:56.2]} 20... Nd4 {[%clk
0:02:05.3]} 21. Bd3 {[%clk 0:01:52.8]} 21... Bb7 {[%clk 0:02:01.2]} 22. Kh1
{[%clk 0:01:48.2]} 22... Nc6 {[%clk 0:01:55.3]} 23. a3 {[%clk 0:01:28.5]} 23...
Rd7 {[%clk 0:01:38.8]} 24. Bb1 {[%clk 0:01:19.2]} 24... Rfd8 {[%clk 0:01:37.3]}
25. Qg4 {[%clk 0:01:00.6]} 25... Nd4 {[%clk 0:01:21.6]} 26. Ba2 {[%clk
0:00:52.9]} 26... Kh8 {[%clk 0:01:06.7]} 27. Be3 {[%clk 0:00:42]} 27... f5
{[%clk 0:01:06.6]} 28. Qh4 {[%clk 0:00:37.2]} 28... fxe4 {[%clk 0:01:05.8]} 29.
Re1 {[%clk 0:00:24.1]} 29... Nf5 {[%clk 0:01:05.8]} 30. Qh3 {[%clk 0:00:23]}
30... Rd3 {[%clk 0:01:03]} 31. Bxe6 {[%clk 0:00:20.3]} 31... Nxe3 {[%clk
0:01:02.9]} 32. Rxe3 {[%clk 0:00:21.2]} 32... Qxf4 {[%clk 0:01:03.3]} 33. Rxd3
{[%clk 0:00:20.3]} 33... Qxc1+ {[%clk 0:01:03.3]} 34. Nd1 {[%clk 0:00:17.4]}
34... Rxd3 {[%clk 0:01:03.4]} 35. Qg4 {[%clk 0:00:16.1]} 35... Qxd1+ {[%clk
0:01:03.5]} 36. Qxd1 {[%clk 0:00:16.4]} 36... Rxd1# {[%clk 0:01:04.1]} 0-1

[Event "*** Titled Tuesday Blitz"]
[Site "Chess.com"]
[Date "2020.04.28"]
[Round "6"]
[White "Keranke"]
[Black "doons21"]
[Result "1-0"]
[WhiteElo "2774"]
[BlackElo "2631"]
[TimeControl "180+1"]
[EndTime "11:06:23 PDT"]
[Termination "Keranke won by resignation"]

1. e4 {[%clk 0:03:00.9]} 1... e6 {[%clk 0:02:59.7]} 2. Qe2 {[%clk 0:03:00.9]}
2... c5 {[%clk 0:02:54]} 3. b3 {[%clk 0:03:00.9]} 3... Nc6 {[%clk 0:02:44.8]} 4.
Bb2 {[%clk 0:03:01.8]} 4... Nf6 {[%clk 0:02:28.9]} 5. f4 {[%clk 0:02:48.1]} 5...
d5 {[%clk 0:02:28.2]} 6. e5 {[%clk 0:02:47.8]} 6... Nd7 {[%clk 0:02:21.9]} 7.
Nc3 {[%clk 0:02:47]} 7... Nd4 {[%clk 0:02:09.3]} 8. Qd3 {[%clk 0:02:46.6]} 8...
Qb6 {[%clk 0:01:32.5]} 9. O-O-O {[%clk 0:02:45.5]} 9... a5 {[%clk 0:01:29.9]}
10. Nf3 {[%clk 0:02:43]} 10... Nxf3 {[%clk 0:01:29.2]} 11. Qxf3 {[%clk
0:02:43.5]} 11... g6 {[%clk 0:01:28.9]} 12. Nxd5 {[%clk 0:02:40.2]} 12... Qd8
{[%clk 0:01:09.4]} 13. Bb5 {[%clk 0:02:35.7]} 13... Bg7 {[%clk 0:01:06.1]} 14.
Nf6+ {[%clk 0:02:32.1]} 14... Kf8 {[%clk 0:01:04]} 15. Bxd7 {[%clk 0:02:11.5]}
15... Bxd7 {[%clk 0:01:03.2]} 16. Qxb7 {[%clk 0:02:12.1]} 16... Bxf6 {[%clk
0:01:03.1]} 17. exf6 {[%clk 0:02:11.9]} 17... a4 {[%clk 0:01:00.5]} 18. Qf3
{[%clk 0:02:08.2]} 18... c4 {[%clk 0:00:56.3]} 19. Qh3 {[%clk 0:02:06.7]} 19...
axb3 {[%clk 0:00:45]} 20. axb3 {[%clk 0:02:05.8]} 20... Bc6 {[%clk 0:00:37.1]}
21. bxc4 {[%clk 0:02:01.7]} 21... h5 {[%clk 0:00:35]} 22. Rhe1 {[%clk
0:01:57.2]} 22... Kg8 {[%clk 0:00:34.1]} 23. Re3 {[%clk 0:01:49.2]} 23... Qa5
{[%clk 0:00:23]} 24. Ra3 {[%clk 0:01:46.6]} 24... Qc5 {[%clk 0:00:20.3]} 25.
Rxa8+ {[%clk 0:01:46.1]} 25... Bxa8 {[%clk 0:00:20.8]} 26. d3 {[%clk 0:01:34]}
26... Kh7 {[%clk 0:00:20.2]} 27. g4 {[%clk 0:01:32.2]} 27... Kg8 {[%clk
0:00:14.2]} 28. g5 {[%clk 0:01:30.4]} 28... Kh7 {[%clk 0:00:13.6]} 29. Qg3
{[%clk 0:01:23.3]} 29... Rb8 {[%clk 0:00:13.5]} 30. Bc3 {[%clk 0:01:18.8]} 30...
Qa3+ {[%clk 0:00:11.9]} 31. Kd2 {[%clk 0:01:19.2]} 31... Qa7 {[%clk 0:00:11.8]}
32. Qe3 {[%clk 0:01:18.5]} 32... Qb7 {[%clk 0:00:11.3]} 33. Qf2 {[%clk
0:01:10.6]} 33... Rc8 {[%clk 0:00:11]} 34. Ra1 {[%clk 0:01:10.6]} 34... Qc6
{[%clk 0:00:09.9]} 35. Ra7 {[%clk 0:01:10.7]} 35... Rc7 {[%clk 0:00:09.6]} 36.
Rxc7 {[%clk 0:01:09.4]} 36... Qxc7 {[%clk 0:00:10.5]} 37. Bb4 {[%clk 0:01:08.9]}
37... Bc6 {[%clk 0:00:10.6]} 38. Kc3 {[%clk 0:01:08.1]} 38... Ba4 {[%clk
0:00:10.5]} 39. Qd4 {[%clk 0:01:07.9]} 39... Qb7 {[%clk 0:00:10.3]} 40. Qd6
{[%clk 0:01:03.2]} 40... Qa8 {[%clk 0:00:08.8]} 41. Qf8 {[%clk 0:01:02.9]} 41...
Qxf8 {[%clk 0:00:08.1]} 42. Bxf8 {[%clk 0:01:03.8]} 42... Kg8 {[%clk 0:00:08.8]}
43. Bd6 {[%clk 0:01:03.9]} 1-0

[Event "*** Titled Tuesday Blitz"]
[Site "Chess.com"]
[Date "2020.04.28"]
[Round "6"]
[White "Kolle05"]
[Black "HrvojeZagreb"]
[Result "1-0"]
[WhiteElo "2415"]
[BlackElo "2089"]
[TimeControl "180+1"]
[EndTime "11:06:24 PDT"]
[Termination "Kolle05 won on time"]

1. e4 {[%clk 0:02:56.2]} 1... e6 {[%clk 0:02:59.8]} 2. d4 {[%clk 0:02:54.3]}
2... d5 {[%clk 0:02:59.6]} 3. Nd2 {[%clk 0:02:55.2]} 3... dxe4 {[%clk
0:02:59.6]} 4. Nxe4 {[%clk 0:02:54.7]} 4... Nd7 {[%clk 0:02:59.8]} 5. c3 {[%clk
0:02:53.7]} 5... Ngf6 {[%clk 0:02:57.7]} 6. Bd3 {[%clk 0:02:53.1]} 6... b6
{[%clk 0:02:51.2]} 7. Qf3 {[%clk 0:02:35.8]} 7... Rb8 {[%clk 0:02:34.1]} 8.
Nxf6+ {[%clk 0:02:07.2]} 8... Nxf6 {[%clk 0:02:31.4]} 9. Bf4 {[%clk 0:02:05.9]}
9... Bd6 {[%clk 0:02:30.1]} 10. Ne2 {[%clk 0:01:38.4]} 10... Bxf4 {[%clk
0:02:25]} 11. Nxf4 {[%clk 0:01:35.1]} 11... O-O {[%clk 0:02:23.9]} 12. O-O-O
{[%clk 0:01:30.1]} 12... Bb7 {[%clk 0:02:23.6]} 13. Qe2 {[%clk 0:01:29.3]} 13...
a5 {[%clk 0:02:16.8]} 14. h4 {[%clk 0:01:28.6]} 14... a4 {[%clk 0:02:15.7]} 15.
h5 {[%clk 0:01:25.7]} 15... h6 {[%clk 0:02:13.6]} 16. Rhg1 {[%clk 0:01:24.9]}
16... a3 {[%clk 0:02:13.6]} 17. b3 {[%clk 0:01:24.3]} 17... Nd5 {[%clk
0:02:13.2]} 18. Nxd5 {[%clk 0:01:20]} 18... Bxd5 {[%clk 0:02:03.2]} 19. Bc2
{[%clk 0:01:18.8]} 19... c5 {[%clk 0:01:57.7]} 20. Qd3 {[%clk 0:01:12.1]} 20...
Qg5+ {[%clk 0:01:49.5]} 21. Kb1 {[%clk 0:01:10.6]} 21... Rfd8 {[%clk 0:01:38.8]}
22. f4 {[%clk 0:01:00.8]} 22... Qf6 {[%clk 0:00:22.4]} 23. g4 {[%clk 0:00:48]}
23... cxd4 {[%clk 0:00:18.9]} 24. g5 {[%clk 0:00:47.2]} 24... hxg5 {[%clk
0:00:18.8]} 25. fxg5 {[%clk 0:00:46.9]} 25... Qf5 {[%clk 0:00:17.7]} 26. Qxd4
{[%clk 0:00:39.4]} 26... Qh3 {[%clk 0:00:09.7]} 27. h6 {[%clk 0:00:35.6]} 1-0

[Event "*** Titled Tuesday Blitz"]
[Site "Chess.com"]
[Date "2020.04.28"]
[Round "6"]
[White "Hikaru"]
[Black "starworld123"]
[Result "1-0"]
[WhiteElo "3233"]
[BlackElo "2664"]
[TimeControl "180+1"]
[EndTime "11:06:26 PDT"]
[Termination "Hikaru won by resignation"]

1. Nf3 {[%clk 0:03:00.9]} 1... d5 {[%clk 0:02:59.7]} 2. b3 {[%clk 0:02:52]} 2...
c5 {[%clk 0:02:57.4]} 3. Bb2 {[%clk 0:02:52.9]} 3... Nc6 {[%clk 0:02:57.9]} 4.
e3 {[%clk 0:02:53]} 4... Nf6 {[%clk 0:02:57.5]} 5. Bb5 {[%clk 0:02:52.6]} 5...
Bd7 {[%clk 0:02:56.7]} 6. Bxc6 {[%clk 0:02:52.7]} 6... Bxc6 {[%clk 0:02:57.6]}
7. O-O {[%clk 0:02:53.4]} 7... e6 {[%clk 0:02:57.9]} 8. Ne5 {[%clk 0:02:53.4]}
8... Qc7 {[%clk 0:02:58.4]} 9. d3 {[%clk 0:02:53.7]} 9... Be7 {[%clk 0:02:58.4]}
10. Nd2 {[%clk 0:02:53.6]} 10... O-O {[%clk 0:02:59]} 11. f4 {[%clk 0:02:53.4]}
11... Nd7 {[%clk 0:02:47.4]} 12. Nxd7 {[%clk 0:02:49.2]} 12... Qxd7 {[%clk
0:02:46.1]} 13. Qg4 {[%clk 0:02:49.7]} 13... f6 {[%clk 0:02:45.1]} 14. Rf3
{[%clk 0:02:49.6]} 14... d4 {[%clk 0:02:32.9]} 15. Rg3 {[%clk 0:02:47.7]} 15...
Rf7 {[%clk 0:02:31.8]} 16. exd4 {[%clk 0:02:47.6]} 16... cxd4 {[%clk 0:02:32.7]}
17. a4 {[%clk 0:02:44]} 17... Bb4 {[%clk 0:02:28.2]} 18. Nc4 {[%clk 0:02:44]}
18... Bd5 {[%clk 0:02:22.9]} 19. Rf1 {[%clk 0:02:40.9]} 19... Bxc4 {[%clk
0:02:11]} 20. dxc4 {[%clk 0:02:40.4]} 20... Bc5 {[%clk 0:02:04]} 21. Rd3 {[%clk
0:02:38.5]} 21... e5 {[%clk 0:02:01.4]} 22. f5 {[%clk 0:02:37.6]} 22... Qc6
{[%clk 0:02:01.2]} 23. Re1 {[%clk 0:02:37.7]} 23... Re8 {[%clk 0:01:57.7]} 24.
Re4 {[%clk 0:02:37.5]} 24... a6 {[%clk 0:01:58.3]} 25. h4 {[%clk 0:02:17.9]}
25... b5 {[%clk 0:01:52.4]} 26. cxb5 {[%clk 0:02:18.8]} 26... axb5 {[%clk
0:01:53.3]} 27. axb5 {[%clk 0:02:19.7]} 27... Qxb5 {[%clk 0:01:53.9]} 28. h5
{[%clk 0:02:20.3]} 28... Qa6 {[%clk 0:01:38.8]} 29. Qd1 {[%clk 0:02:12.7]} 29...
Qa8 {[%clk 0:01:25.9]} 30. Qe2 {[%clk 0:02:08.2]} 30... Rc8 {[%clk 0:01:24]} 31.
Kh2 {[%clk 0:02:04.2]} 31... Bf8 {[%clk 0:01:08]} 32. c3 {[%clk 0:01:59.9]}
32... dxc3 {[%clk 0:01:08.6]} 33. Bxc3 {[%clk 0:01:59.4]} 33... Rfc7 {[%clk
0:01:09.1]} 34. Bd2 {[%clk 0:01:58]} 34... Rc2 {[%clk 0:01:08.5]} 35. h6 {[%clk
0:01:56.1]} 35... Rd8 {[%clk 0:00:59]} 36. hxg7 {[%clk 0:01:55.2]} 36... Bxg7
{[%clk 0:00:58.6]} 37. Rg4 {[%clk 0:01:54.1]} 37... Kh8 {[%clk 0:00:30.3]} 38.
Bh6 {[%clk 0:01:39.8]} 38... Rc7 {[%clk 0:00:14.5]} 39. Rc3 {[%clk 0:01:27.6]}
39... Rcd7 {[%clk 0:00:11.2]} 40. Bxg7+ {[%clk 0:01:26.8]} 40... Rxg7 {[%clk
0:00:12]} 41. Rxg7 {[%clk 0:01:27.7]} 41... Kxg7 {[%clk 0:00:12.9]} 42. Qg4+
{[%clk 0:01:28.3]} 42... Kh8 {[%clk 0:00:12.9]} 43. Qh4 {[%clk 0:01:28.1]} 43...
Rg8 {[%clk 0:00:03]} 44. Qxf6+ {[%clk 0:01:26.6]} 44... Rg7 {[%clk 0:00:02.7]}
45. Rg3 {[%clk 0:01:26.1]} 45... Qg8 {[%clk 0:00:01.1]} 46. Qxe5 {[%clk
0:01:24.6]} 1-0